Cogmind - Beta 10.2 @@@ ROGUE MODE // 2021.05.12 @ 11:33:34 Player: ChromeKnight Result: Destroyed by B-75 Beast with Heavy Machine Gun Performance ------------- Evolutions (5) 2500 Regions Visited (11) 2200 Robots Destroyed (84) 420 Value Destroyed (3015) 3015 Prototype IDs (6) 120 Alien Tech Used (0) 0 Bonus (1232) 1232 TOTAL SCORE: 9487 Bonus ------- Follower Combat Kills 732 Network Hubs Disabled 200 A7 Reached Mainframe 300 Cogmind --------- Core Integrity 0/1000 Matter 295/300 Energy 78/100 System Corruption 21% Temperature Cool (12) Movement Core (300) Ox5 Location -5/Hub_04(d) Parts ------- > --- POWER (2) -------- (None) > --- PROPULSION (3) --- (None) > --- UTILITY (9) ------ Large Storage Unit Enhanced Optical Array Improved Melee Analysis Suite Core Analyzer > --- WEAPON (3) ------- (None) > --- INVENTORY (10) --- Improved Hacking Suite Improved Hacking Suite Improved Hacking Suite Improved System Shield Improved System Shield Improved System Shield Improved System Shield Advanced System Shield Gauss Rifle Advanced Datajack Peak State ------------ > --- POWER ------------ Particle Reactor Particle Reactor > --- PROPULSION ------- Flexi-carbon Leg Flexi-carbon Leg Flexi-carbon Leg > --- UTILITY ---------- Large Storage Unit Enhanced Optical Array Improved Melee Analysis Suite Core Analyzer Microactuators Microactuators Actuator Array Improved Heavy Armor Plating > --- WEAPON ----------- Heavy Pick Heavy Pick Heavy Pick > --- INVENTORY -------- Improved Hacking Suite Improved Hacking Suite Improved Hacking Suite Improved System Shield Improved System Shield Improved System Shield Improved System Shield Advanced System Shield Advanced Datajack Spear [Rating: 85] Favorites ----------- Power Light Fission Core Engine Light Deuterium Engine Power Core Light Fission Core Reactor Particle Reactor Propulsion Flexi-carbon Leg Leg Flexi-carbon Leg Wheel Wheel Hover Unit Antigrav System Flight Unit Nuclear Pulse Thruster Utility Large Storage Unit Device Microactuators Storage Large Storage Unit Processor Improved Melee Analysis Suite Protection Layered Light Armor Plating Weapon Great Axe Energy Gun Shock Rifle Energy Cannon Heavy Ion Cannon Ballistic Gun Assault Rifle Impact Weapon Power Maul Slashing Weapon Great Axe Piercing Weapon Spear Build | -11 -10 -9 -9 -8 -7 -6 -5 -5 -5 -5 -5 ------- Run | Scr Mat Mat Min Mat Fac Fac Fac Ext Cet Arc Hub Slots Evolved 10 | . . 2 . 2 2 2 2 . . . . Power 1 | . . . . . 1 . . . . . . Propulsion 1 | . . . . 1 . . . . . . . Utility 7 | . . 2 . 1 . 2 2 . . . . Weapon 1 | . . . . . 1 . . . . . . Parts Attached 136 | 7 7 10 4 21 26 16 4 11 7 8 15 Power 21 | 1 1 1 . 3 5 4 1 2 . 2 1 Engine 5 | 1 . . . 1 1 1 . 1 . . . Core 14 | . 1 1 . 2 4 3 1 1 . . 1 Reactor 2 | . . . . . . . . . . 2 . Propulsion 32 | 2 1 3 . 3 4 6 . 3 4 1 5 Treads . | . . . . . . . . . . . . Leg 23 | . . 2 . 3 . 6 . 3 4 1 4 Wheel 4 | 2 1 1 . . . . . . . . . Hover 4 | . . . . . 4 . . . . . . Flight 1 | . . . . . . . . . . . 1 Utility 44 | 1 3 3 4 8 8 5 2 3 3 3 1 Device 17 | . . 2 4 2 2 1 2 2 2 . . Storage 5 | 1 1 1 . 1 1 . . . . . . Processor 9 | . 1 . . 2 1 3 . 1 . 1 . Hackware . | . . . . . . . . . . . . Protection 13 | . 1 . . 3 4 1 . . 1 2 1 Artifact . | . . . . . . . . . . . . Weapon 39 | 3 2 3 . 7 9 1 1 3 . 2 8 Energy Gun 8 | . 2 3 . 3 . . . . . . . Energy Cannon 4 | . . . . 4 . . . . . . . Ballistic Gun 4 | 3 . . . . . . . . . . 1 Ballistic Cannon . | . . . . . . . . . . . . Launcher . | . . . . . . . . . . . . Special Weapon . | . . . . . . . . . . . . Impact Weapon 5 | . . . . . 3 . . 1 . 1 . Slashing Weapon 9 | . . . . . 6 . 1 1 . 1 . Piercing Weapon 9 | . . . . . . 1 . 1 . . 7 Special Melee Weapon . | . . . . . . . . . . . . Unidentified Prototypes 6 | . . . 1 2 1 1 . . . . 1 Parts Lost 35 | . 1 1 . 7 . 2 . 4 . 4 16 Power 6 | . . . . 1 . 1 . 1 . . 3 Propulsion 11 | . 1 . . 2 . 1 . . . 1 6 Utility 14 | . . . . 4 . . . 2 . 3 5 Weapon 4 | . . 1 . . . . . 1 . . 2 Highest Loss Streak 13 | . 1 1 . 3 . 2 . 4 . 2 13 Average Slot Usage (%) 94 | . 95 93 100 93 96 98 96 95 96 92 84 Engine 2 | . 11 . . 1 2 4 . 1 5 2 . Core 7 | . 1 10 11 6 10 7 11 9 5 2 1 Leg 13 | . . 12 22 23 6 11 17 17 17 16 14 Wheel 1 | . 26 8 . . . . . . . . . Hover 4 | . . . . . 13 7 . . . . . Device 12 | . . 21 22 13 6 6 15 17 23 17 15 Storage 6 | . 14 11 11 9 7 6 5 5 5 5 5 Processor 17 | . 9 11 11 13 14 25 23 22 17 17 17 Protection 5 | . 2 . . 7 7 6 5 5 2 5 3 Energy Gun 2 | . 3 17 22 7 . . . . . . . Energy Cannon 1 | . . . . 10 . . . . . . . Impact Weapon 4 | . . . . . 6 6 5 5 5 5 1 Slashing Weapon 6 | . . . . . 14 10 5 4 5 5 1 Piercing Weapon 1 | . . . . . . 2 2 1 5 5 11 Naked Turns . | . . . . . . . . . . . . Heaviest Build 85 | 13 26 29 31 43 50 48 55 54 49 85 85 Greatest Support 65 | 26 26 20 20 30 45 60 60 65 65 55 60 Greatest Overweight (x) 6 | . 2 2 1 3 2 2 . . . 1 6 Average Overweight (x) . | . . 1 1 1 . . . . . . . Largest Inventory Capacity 12 | 6 12 10 10 10 10 10 10 10 10 10 10 Average Capacity 9 | 4 9 10 10 10 10 10 10 10 10 10 10 Most Carried 10 | 1 9 10 10 10 10 10 10 10 9 10 10 Average Carried 9 | . 5 9 9 9 9 9 9 9 7 8 9 Final Capacity 10 | 6 10 10 10 10 10 10 10 10 10 10 10 Final Carried 10 | 1 8 9 10 10 10 10 10 7 7 9 10 Class Distribution -------------------- 34% | Scavenger-Mutant 30% | Mutant 19% | Assassin 5% | Gladiator 3% | Commander-Assassin Dominant Class ---------------- Mutant | -10/Materials Scavenger-Mutant | -9/Materials Scavenger-Mutant | -9/Mines Scavenger-Mutant | -8/Materials Mutant | -7/Factory Assassin | -6/Factory Gladiator | -5/Factory Commander-Assassin | -5/Extension Scavenger-Mutant | -5/Cetus Scavenger-Mutant | -5/Archives Scavenger-Mutant | -5/Hub_04(d) Resources | -11 -10 -9 -9 -8 -7 -6 -5 -5 -5 -5 -5 ----------- Run | Scr Mat Mat Min Mat Fac Fac Fac Ext Cet Arc Hub Matter Collected 1660 | 183 184 143 . 255 278 110 90 110 80 70 157 Remotely . | . . . . . . . . . . . . Salvage Created 4080 | . 322 279 . 959 544 252 102 444 . 626 552 Parts 228 | . 16 13 . 60 29 16 3 18 . 44 29 Haulers Intercepted 7 | . 1 . . 2 1 1 1 . . . 1 Recyclers Shooed 1 | . . . . . 1 . . . . . . Parts Field Recycled . | . . . . . . . . . . . . Retrieved Matter . | . . . . . . . . . . . . Parts Self-Destructed . | . . . . . . . . . . . . Prevented . | . . . . . . . . . . . . Kills | -11 -10 -9 -9 -8 -7 -6 -5 -5 -5 -5 -5 ------- Run | Scr Mat Mat Min Mat Fac Fac Fac Ext Cet Arc Hub Combat Hostiles Destroyed 50 | . 3 5 . 19 6 3 . 4 . 4 6 Melee 22 | . . . . . 5 3 . 4 . 4 6 Guns 14 | . 3 3 . 8 . . . . . . . Cannons 8 | . . . . 8 . . . . . . . AOE 4 | . . 1 . 3 . . . . . . . Classes Destroyed 13 | . 5 2 . 3 2 1 . . . . . Worker 6 | . . . . 2 2 1 . . . . 1 Builder 2 | . 1 . . 1 . . . . . . . Tunneler 1 | . . . . . 1 . . . . . . Hauler 7 | . 1 . . 2 1 1 1 . . . 1 Recycler 3 | . 1 . . . 1 . . 1 . . . Operator 10 | . . 1 . . . . . . . 8 1 Watcher 5 | . 1 1 . . 1 . . 1 . . 1 Swarmer 7 | . . . . 7 . . . . . . . Grunt 15 | . 3 4 . 6 . . . 2 . . . Brawler 2 | . . . . 2 . . . . . . . Sentry 14 | . . 1 . 4 2 . . 2 . 4 1 Hunter 3 | . . . . . . 1 . . . . 2 Programmer 8 | . . . . . 4 2 . . . . 2 Lightning 1 | . . . . . . . . . . . 1 Best Kill Streak 6 | . 3 5 . 6 2 1 1 1 . 3 2 Combat Bots Only 5 | . 2 5 . 5 2 1 . 1 . 1 2 Max Kills in Single Turn 2 | . 2 1 . 2 1 1 1 1 . 1 2 Gunslinging 1 | . 1 . . . . . . . . . . Exploded 2 | . . 1 . 2 . . . . . . . Melee 1 | . . . . . 1 1 . 1 . 1 1 Uniques/NPCs Destroyed . | . . . . . . . . . . . . Combat | -11 -10 -9 -9 -8 -7 -6 -5 -5 -5 -5 -5 -------- Run | Scr Mat Mat Min Mat Fac Fac Fac Ext Cet Arc Hub Damage Taken 7087 | . 183 240 . 968 595 385 . 1084 . 688 2944 Core 1344 | . 28 68 . 156 56 33 . 181 . 132 690 Absorbed by Shields 7 | . . . . . . . . 7 . . . Core Remaining (%) 88 | 100 88 . 83 71 92 96 . . . . . Volleys Fired 87 | . 16 19 . 51 . . . . . . 1 Largest 2 | . 2 2 . 2 . . . . . . 1 Hottest 130 | . 80 100 . 130 . . . . . . 28 Shots Fired 162 | . 32 28 . 101 . . . . . . 1 Gun 97 | . 32 28 . 36 . . . . . . 1 Cannon 65 | . . . . 65 . . . . . . . Launcher . | . . . . . . . . . . . . Special . | . . . . . . . . . . . . Kinetic 31 | . 30 . . . . . . . . . 1 Thermal 67 | . 2 . . 65 . . . . . . . Explosive . | . . . . . . . . . . . . Electromagnetic 64 | . . 28 . 36 . . . . . . . Robot Hit Streak 15 | . 13 7 . 15 . . . . . . . Robot Miss Streak 3 | . 1 3 . 3 . . . . . . . Penetration Max . | . . . . . . . . . . . . Secondary Targets 1 | . 1 . . . . . . . . . . Max Gunslinging Chain 1 | . 1 . . . . . . . . . . Shots Hit Robots 264 | . 22 16 . 70 40 18 7 23 . 34 34 Core Hits 122 | . 10 8 . 35 11 6 1 9 . 23 19 Critical Hits 9 | . 2 . . 2 . 1 1 2 . . 1 Critical Kills 5 | . 1 . . 1 . 1 1 1 . . . Critical Parts Destroyed 4 | . 1 . . 1 . . . 1 . . 1 Melee Attacks 225 | . . . . . 54 38 9 39 . 41 44 Impact 36 | . . . . . 11 2 . 12 . 10 1 Slashing 111 | . . . . . 43 31 8 19 . 9 1 Piercing 78 | . . . . . . 5 1 8 . 22 42 Sneak Attacks 25 | . . . . . 5 4 1 1 . 12 2 Combat Hostiles . | . . . . . . . . . . . . Follow-up Attacks 50 | . . . . . 14 4 1 6 . 12 13 Damage Inflicted 10332 | . 265 416 . 1800 1974 1115 368 1008 . 1889 1497 Guns 1231 | . 265 329 . 637 . . . . . . . Cannons 1070 | . . . . 1070 . . . . . . . Explosions 376 | . . 87 . 93 . . . . . . 196 Melee 7648 | . . . . . 1974 1115 368 1008 . 1889 1294 Ramming 7 | . . . . . . . . . . . 7 Kinetic 265 | . 265 . . . . . . . . . . Thermal 1250 | . . 87 . 1163 . . . . . . . Explosive . | . . . . . . . . . . . . Electromagnetic 1162 | . . 329 . 637 . . . . . . 196 Impact 690 | . . . . . 173 41 . 131 . 237 108 Slashing 4459 | . . . . . 1801 1074 341 581 . 535 127 Piercing 2499 | . . . . . . . 27 296 . 1117 1059 Highest Corruption 21 | . . . . 3 3 1 . . . . 21 Average Corruption 4 | . . . . 3 2 1 . . . . 12 Corruption Purged . | . . . . . . . . . . . . Effects 51 | . . . . 13 13 1 . . . . 24 Message Errors 11 | . . . . 2 5 1 . . . . 3 Matter Fused 10 | . . . . 1 5 . . . . . 4 Heat Flow Errors 5 | . . . . 2 2 . . . . . 1 Energy Discharges 4 | . . . . 3 . . . . . . 1 Data Loss (minor) 1 | . . . . . . . . . . . 1 Data Loss (major) 1 | . . . . . . . . . . . 1 Alerts 1 | . . . . . . . . . . . 1 Misdirections 2 | . . . . . . . . . . . 2 Targeting Errors 15 | . . . . 4 1 . . . . . 10 Weapon Failures 1 | . . . . 1 . . . . . . . Overload Shots . | . . . . . . . . . . . . Overflow Damage 686 | . . 9 . . 234 199 56 19 . 165 4 Projectiles . | . . . . . . . . . . . . Explosions 9 | . . 9 . . . . . . . . . Melee 677 | . . . . . 234 199 56 19 . 165 4 Knockbacks 1 | . . . . . . . . . . 1 . Impact 1 | . . . . . . . . . . 1 . Kinetic . | . . . . . . . . . . . . Secondary . | . . . . . . . . . . . . Self-Inflicted Damage 171 | . . 43 . 30 . . . . . . 98 Shots 3 | . . 1 . 1 . . . . . . 1 Rammed 1 | . . . . . . . . . . . 1 Targets Rammed 1 | . . . . . . . . . . . 1 Kicked . | . . . . . . . . . . . . Crushed . | . . . . . . . . . . . . Highest Temperature 392 | . 24 . . 392 267 . . 11 . . 140 Average Temperature 89 | . 10 . . 84 114 . . 3 . . 73 Received Heat Transfer 1158 | . 105 69 . 324 72 . . 207 . 108 273 Effects 1 | . . . . . 1 . . . . . . Energy Bleed 1 | . . . . . 1 . . . . . . Siege Activations . | . . . . . . . . . . . . Robots Corrupted 1 | . . 1 . . . . . . . . . Combat Hostiles 1 | . . 1 . . . . . . . . . Parts Fried 10 | . . 2 . 2 1 . . . . 1 4 Impact Corruptions 4 | . . . . . 3 . . . . 1 . Robots Melted . | . . . . . . . . . . . . Combat Hostiles . | . . . . . . . . . . . . Parts Melted 1 | . . . . 1 . . . . . . . Heat Transferred 1680 | . . 100 . 1580 . . . . . . . Parts Sabotaged . | . . . . . . . . . . . . Parts Stolen . | . . . . . . . . . . . . Parts Stripped . | . . . . . . . . . . . . Power Chain Reactions 3 | . . 1 . 2 . . . . . . . Missiles Intercepted . | . . . . . . . . . . . . Alert | -11 -10 -9 -9 -8 -7 -6 -5 -5 -5 -5 -5 ------- Run | Scr Mat Mat Min Mat Fac Fac Fac Ext Cet Arc Hub Peak Influence 468 | . 120 215 11 421 172 142 18 366 66 120 468 Initial 123 | . . 50 11 3 123 56 7 1 66 14 1 Average 98 | . 43 111 11 225 89 37 9 161 34 58 128 Maximum Alert Level 2 | . . 1 . 2 . . . 1 . . 2 Low Security (%) 83 | 100 100 60 100 34 100 100 100 68 100 100 72 Level 1 15 | . . 39 . 64 . . . 31 . . 17 Level 2 . | . . . . . . . . . . . 9 Level 3 . | . . . . . . . . . . . . Level 4 . | . . . . . . . . . . . . Level 5 . | . . . . . . . . . . . . High Security . | . . . . . . . . . . . . Max Security . | . . . . . . . . . . . . Squads Dispatched 14 | . . 2 . 1 4 4 . 1 . . 2 Investigation 2 | . . 1 . . 1 . . . . . . Extermination 6 | . . . . . 2 3 . . . . 1 Reinforcement 6 | . . 1 . 1 1 1 . 1 . . 1 Assault . | . . . . . . . . . . . . Garrison . | . . . . . . . . . . . . Intercept . | . . . . . . . . . . . . Construction Impeded . | . . . . . . . . . . . . Haulers Reinforced 1 | . . . . . . 1 . . . . . Stealth | -11 -10 -9 -9 -8 -7 -6 -5 -5 -5 -5 -5 --------- Run | Scr Mat Mat Min Mat Fac Fac Fac Ext Cet Arc Hub Distress Signals 5 | . . 1 . 1 . . . 2 1 . . Communications Jammed . | . . . . . . . . . . . . Distress Signals . | . . . . . . . . . . . . Times Spotted 117 | . 4 11 . 27 11 7 . 23 4 6 24 Peak Tracking Total 8 | . 2 3 . 7 3 2 . 4 4 1 8 Tactical Retreats 7 | . . . . 2 . 1 . 2 . . 2 Traps | -11 -10 -9 -9 -8 -7 -6 -5 -5 -5 -5 -5 ------- Run | Scr Mat Mat Min Mat Fac Fac Fac Ext Cet Arc Hub Traps Triggered 5 | . . . . . . 1 . 1 . . 3 Indirectly 1 | . . . . . . . . . . . 1 Trap Hack Attempts . | . . . . . . . . . . . . Triggered . | . . . . . . . . . . . . Disarmed . | . . . . . . . . . . . . Reprogrammed . | . . . . . . . . . . . . Reused . | . . . . . . . . . . . . Traps Extracted . | . . . . . . . . . . . . Installed . | . . . . . . . . . . . . Triggered . | . . . . . . . . . . . . Machines | -11 -10 -9 -9 -8 -7 -6 -5 -5 -5 -5 -5 ---------- Run | Scr Mat Mat Min Mat Fac Fac Fac Ext Cet Arc Hub Machines Disabled 8 | . . 1 . 3 . . . . . . 4 Max in Single Turn 4 | . . 1 . 1 . . . . . . 4 Garrison Access 2 | . . . . . 1 . 1 . . . . Network Hub 1 | . . . . . . . . . . . 1 Machines Sabotaged . | . . . . . . . . . . . . Garrisons Compromised . | . . . . . . . . . . . . Overloaded Fab Kills . | . . . . . . . . . . . . Fab Network Shutdowns . | . . . . . . . . . . . . Hacking | -11 -10 -9 -9 -8 -7 -6 -5 -5 -5 -5 -5 --------- Run | Scr Mat Mat Min Mat Fac Fac Fac Ext Cet Arc Hub Machines Accessed 25 | . 1 1 1 1 7 2 3 6 2 1 . Terminals 14 | . 1 . . 1 2 1 1 6 2 . . Fabricators 3 | . . . . . 2 . 1 . . . . Repair Stations 2 | . . 1 . . . 1 . . . . . Recycling Units . | . . . . . . . . . . . . Scanalyzers 1 | . . . . . 1 . . . . . . Garrison Access 3 | . . . . . 2 . 1 . . . . Total Hacks 78 | . 3 5 1 3 17 9 4 8 3 25 . Successful 62 | . 2 4 1 . 11 7 2 8 2 25 . Failed 16 | . 1 1 . 3 6 2 2 . 1 . . Catastrophic 2 | . . . . 1 1 . . . . . . Database Lockouts . | . . . . . . . . . . . . Manual 7 | . 3 . . 3 . . . . 1 . . Terminals 25 | . 3 . . 3 4 2 2 8 3 . . Fabricators 4 | . . . . . 3 . 1 . . . . Repair Stations 12 | . . 5 . . . 7 . . . . . Recycling Units . | . . . . . . . . . . . . Scanalyzers 6 | . . . . . 6 . . . . . . Garrison Access 5 | . . . . . 4 . 1 . . . . Terminal Hacks 42 | . 2 . 1 . 2 1 1 8 2 25 . Record 29 | . . . . . . 1 . 2 1 25 . Part Schematic 1 | . . . . . 1 . . . . . . Robot Schematic 1 | . . . . . . . . 1 . . . Robot Analysis 2 | . 2 . . . . . . . . . . Open Door 7 | . . . 1 . . . 1 4 1 . . Locate Traps 1 | . . . . . . . . 1 . . . Zone Layout 1 | . . . . . 1 . . . . . . Fabricator Hacks 3 | . . . . . 3 . . . . . . Load Schematic 1 | . . . . . 1 . . . . . . Build 2 | . . . . . 2 . . . . . . Repair Station Hacks 10 | . . 4 . . . 6 . . . . . Scan Component 5 | . . 2 . . . 3 . . . . . Repair 5 | . . 2 . . . 3 . . . . . Recycling Unit Hacks . | . . . . . . . . . . . . Scanalyzer 5 | . . . . . 5 . . . . . . Insert Component 2 | . . . . . 2 . . . . . . Analyze 3 | . . . . . 3 . . . . . . Garrison Access Hacks 2 | . . . . . 1 . 1 . . . . Seal Access 2 | . . . . . 1 . 1 . . . . Unauthorized Hacks . | . . . . . . . . . . . . Terminals . | . . . . . . . . . . . . Fabricators . | . . . . . . . . . . . . Repair Stations . | . . . . . . . . . . . . Recycling Units . | . . . . . . . . . . . . Scanalyzers . | . . . . . . . . . . . . Garrison Access . | . . . . . . . . . . . . Data Cores Recovered . | . . . . . . . . . . . . Used . | . . . . . . . . . . . . Hacking Detections 16 | . 1 1 . 1 6 1 2 3 1 . . Full Trace Events 2 | . . 1 . . 1 . . . . . . Feedback Events . | . . . . . . . . . . . . Feedback Blocked . | . . . . . . . . . . . . Robot Schematics Acquired 1 | . . . . . . . . 1 . . . Robots Built . | . . . . . . . . . . . . Matter . | . . . . . . . . . . . . Time . | . . . . . . . . . . . . Total Robot Build Rating . | . . . . . . . . . . . . Part Schematics Acquired 3 | . . . . . 3 . . . . . . Parts Built 3 | . . . . . 3 . . . . . . Matter 380 | . . . . . 380 . . . . . . Time 95 | . . . . . 95 . . . . . . Total Part Build Rating 14 | . . . . . 14 . . . . . . Parts Repaired 5 | . . 2 . . . 3 . . . . . Time 214 | . . 64 . . . 150 . . . . . Parts Recycled . | . . . . . . . . . . . . Recycled Matter . | . . . . . . . . . . . . Retrieved Matter . | . . . . . . . . . . . . Retrieved Components . | . . . . . . . . . . . . Parts Scanalyzed 2 | . . . . . 2 . . . . . . Part Schematics Acquired 2 | . . . . . 2 . . . . . . Parts Damaged . | . . . . . . . . . . . . Bothacking | -11 -10 -9 -9 -8 -7 -6 -5 -5 -5 -5 -5 ------------ Run | Scr Mat Mat Min Mat Fac Fac Fac Ext Cet Arc Hub Used RIF Installer . | . . . . . . . . . . . . Robots Hacked . | . . . . . . . . . . . . Non-combat . | . . . . . . . . . . . . Combat . | . . . . . . . . . . . . Robot Hacks Applied . | . . . . . . . . . . . . Relay Couplers Released 4 | . . . . . 4 . . . . . . Programmers 4 | . . . . . 4 . . . . . . Robots Rewired 16 | . . . . . . . . 16 . . . Allies Hacked . | . . . . . . . . . . . . Hacks Repelled . | . . . . . . . . . . . . Allies | -11 -10 -9 -9 -8 -7 -6 -5 -5 -5 -5 -5 -------- Run | Scr Mat Mat Min Mat Fac Fac Fac Ext Cet Arc Hub Total Allies 21 | . . . . . . . . 21 . . . Largest Group 14 | . . . . . . . . 14 2 2 . Highest-Rated Group 370 | . . . . . . . . 370 181 181 . Highest-Rated Ally 156 | . . . . . . . . 156 156 156 . Total Orders 3 | . . . . . . . . . 3 . . EXPLORE 1 | . . . . . . . . . 1 . . RETURN 2 | . . . . . . . . . 2 . . Ally Attacks 138 | . . . . . . . . 113 23 2 . Total Damage 2192 | . . . . . . . . 2038 154 . . Kills 17 | . . . . . . . . 15 2 . . Allies Corrupted . | . . . . . . . . . . . . Allies Melted . | . . . . . . . . . . . . Intel | -11 -10 -9 -9 -8 -7 -6 -5 -5 -5 -5 -5 ------- Run | Scr Mat Mat Min Mat Fac Fac Fac Ext Cet Arc Hub Robot Analysis Total 2 | . 2 . . . . . . . . . . Derelict Logs Recovered . | . . . . . . . . . . . . Drone Launches 23 | . . . . . . . . . 23 . . Drone Recoveries 7 | . . . . . . . . . 7 . . Exploration | -11 -10 -9 -9 -8 -7 -6 -5 -5 -5 -5 -5 ------------- Run | Scr Mat Mat Min Mat Fac Fac Fac Ext Cet Arc Hub Turns Passed 7144 | 43 262 512 107 868 1533 1268 464 919 248 437 483 Spaces Moved 4627 | 37 204 270 66 420 1219 933 369 478 145 224 262 Core 2 | 1 . . . . . . . . . . 1 Treads . | . . . . . . . . . . . . Legs 2903 | . . 181 66 420 235 525 369 478 145 224 260 Wheels 329 | 36 204 89 . . . . . . . . . Hover 1392 | . . . . . 984 408 . . . . . Flight 1 | . . . . . . . . . . . 1 Fastest Speed 48 | 50 90 90 150 120 48 48 120 120 120 120 100 Average Speed 116 | 88 90 130 150 154 103 100 120 120 120 144 146 Slowest Speed 350 | 90 100 150 150 210 180 180 120 120 120 150 350 Overloaded Moves . | . . . . . . . . . . . . Propulsion Burnouts . | . . . . . . . . . . . . Robots Hopped . | . . . . . . . . . . . . Cave-ins Triggered . | . . . . . . . . . . . . Exploration Rate (%) 39 | 3 37 26 15 45 34 24 10 74 81 89 31 Regions Visited 11 Branch Regions 5 Pre-discovered Areas . | . . . . . . . . . . . . Known Exits Taken 4 | . . . . 1 1 1 1 . . . . Unknown Exits Taken 7 | 1 1 1 1 . . . . 1 1 1 . Scrap Searched . | . . . . . . . . . . . . Spaces Dug 25 | . . . . 2 3 10 2 7 . . 1 Terrain Destroyed 199 | . . 6 . 23 3 10 2 7 . . 148 Melee 23 | . . . . . 3 10 2 7 . . 1 Projectile 15 | . . . . 15 . . . . . . . AOE 161 | . . 6 . 8 . . . . . . 147 Terrain Rammed . | . . . . . . . . . . . . Walls Destroyed . | . . . . . . . . . . . . Machines Disabled . | . . . . . . . . . . . . Actions | -11 -10 -9 -9 -8 -7 -6 -5 -5 -5 -5 -5 --------- Run | Scr Mat Mat Min Mat Fac Fac Fac Ext Cet Arc Hub Total 6016 | 43 248 406 74 537 1435 1215 385 802 219 325 327 Wait 606 | . 10 89 . 21 109 225 2 36 62 46 6 Move 4616 | 36 203 269 65 419 1218 932 368 477 144 223 262 Hop . | . . . . . . . . . . . . Pick Up 59 | . 7 9 1 8 15 3 . . 1 13 2 Fast Attach 68 | 6 6 4 3 11 9 12 1 2 2 4 8 Attach 22 | . 1 3 . 2 4 1 2 4 3 2 . Detach 8 | . 1 . . 1 1 1 2 . 2 . . Swap 46 | 1 . 3 1 8 13 3 1 5 2 2 7 Drop 107 | . 4 10 4 16 32 10 1 5 3 12 10 Fire 87 | . 16 19 . 51 . . . . . . 1 Melee 153 | . . . . . 34 28 8 30 . 23 30 Ram . | . . . . . . . . . . . . Kick 1 | . . . . . . . . . . . 1 Crush . | . . . . . . . . . . . . Escape Stasis 9 | . . . . . . . . 9 . . . Rewire 234 | . . . . . . . . 234 . . . Trap . | . . . . . . . . . . . . Miscellaneous . | . . . . . . . . . . . . Route ------- -11/Scrapyard -10/Materials -9/Materials -9/Mines -8/Materials -7/Factory (discovered 2 exits: *Fac x2) -6/Factory -5/Factory -5/Extension (discovered 2 exits: [*Fac] / *Cet) -5/Cetus -5/Archives (discovered 3 exits: [*Fac] / [*Hub x2]) -5/Hub_04(d) History --------- Turn | Location | Event 8 | -11/Scrapyard | Discovered new exit (range 16) 44 | -11/Scrapyard | Entered Materials 291 | -10/Materials | Discovered new exit (range 12) 306 | -10/Materials | Entered another Materials area 306 | -9/Materials | Evolved 2 slots: Utility x2 341 | -9/Materials | Build established: Mutant 388 | -9/Materials | Repaired Lgt. Nuclear Core 416 | -9/Materials | Repaired Wheel 787 | -9/Materials | Discovered new exit (range 14) 818 | -9/Materials | Entered Mines 819 | -9/Mines | Met a Derelict bent on vengeance 820 | -9/Mines | Build established: Scavenger-Mutant 824 | -9/Mines | Found the Drone Emporium 832 | -9/Mines | Found Prototype Device 832 | -9/Mines | Identified Bomb Drone Bay 889 | -9/Mines | Discovered new exit (range 3) 925 | -9/Mines | Entered Materials 925 | -8/Materials | Evolved 2 slots: Propulsion x1, Utility x1 1411 | -8/Materials | Lost 3 parts (1n2u) 1767 | -8/Materials | Discovered new exit (range 16) 1791 | -8/Materials | Identified exit to Factory 1793 | -8/Materials | Entered Factory 1793 | -7/Factory | Evolved 2 slots: Power x1, Weapon x1 1912 | -7/Factory | Fabricated Lyr. Heavy Armor Plating (x1) 2129 | -7/Factory | Build established: Mutant 2387 | -7/Factory | Discovered new exit (range 11) 2507 | -7/Factory | Identified exit to Factory 3253 | -7/Factory | Fabricated Microactuators (x2) 3290 | -7/Factory | Discovered exit to Factory (range 9) 3326 | -7/Factory | Entered another Factory area 3326 | -6/Factory | Evolved 2 slots: Utility x2 3415 | -6/Factory | Found Prototype Processor 3415 | -6/Factory | Identified Exp. Signal Interpreter 3888 | -6/Factory | Build established: Assassin 4250 | -6/Factory | Spotted B-75 Beast 4337 | -6/Factory | Repaired Flexi-carbon Leg 4389 | -6/Factory | Repaired Flexi-carbon Leg 4440 | -6/Factory | Repaired Flexi-carbon Leg? 4570 | -6/Factory | Discovered new exit (range 7) 4576 | -6/Factory | Identified exit to Factory 4594 | -6/Factory | Entered another Factory area 4594 | -5/Factory | Evolved 2 slots: Utility x2 5045 | -5/Factory | Discovered new exit (range 9) 5057 | -5/Factory | Identified exit to Extension 5058 | -5/Factory | Entered Extension 5103 | -5/Extension | Rescued a captive Derelict 5104 | -5/Extension | Rescued a captive Derelict 5125 | -5/Extension | Build established: Gladiator 5388 | -5/Extension | Rescued a captive Derelict 5703 | -5/Extension | Spotted B-75 Beast 5729 | -5/Extension | Spotted B-75 Beast 5775 | -5/Extension | Lost 4 parts (1p2u1w) 5824 | -5/Extension | Rescued A7 5888 | -5/Extension | Rescued a captive Derelict 5965 | -5/Extension | Discovered new exit (range 10) 5966 | -5/Extension | Discovered new exit (range 6) 5977 | -5/Extension | Entered Cetus 5977 | -5/Cetus | Accompanied by 2 allies (A7) 5982 | -5/Cetus | Acquired a Cetus Manufacturing Module code from A7 6008 | -5/Cetus | Spotted Cetus Guard 6063 | -5/Cetus | Cetus Manufacturing Module disabled 6112 | -5/Cetus | Failed to start Cetus Manufacturing Module 6180 | -5/Cetus | Escorted A7 to Cetus Mainframe 6195 | -5/Cetus | Discovered new exit (range 22) 6214 | -5/Cetus | Build established: Scavenger-Mutant 6225 | -5/Cetus | Entered Archives 6225 | -5/Archives | Accompanied by 2 allies (A7) 6230 | -5/Archives | Received a hacking code to weaken MAIN.C 6404 | -5/Archives | Discovered new exit (range 22) 6411 | -5/Archives | Discovered new exit (range 20) 6434 | -5/Archives | Discovered new exit (range 22) 6443 | -5/Archives | Unable to access archive contents 6458 | -5/Archives | Unable to access archive contents 6473 | -5/Archives | Unable to access archive contents 6495 | -5/Archives | Unable to access archive contents 6662 | -5/Archives | Entered Hub_04(d) 6742 | -5/Hub_04(d) | Spotted B-75 Beast 6824 | -5/Hub_04(d) | System corruption reached 10% 7014 | -5/Hub_04(d) | Network Hub disabled 7033 | -5/Hub_04(d) | Spotted Lightning 7034 | -5/Hub_04(d) | Spotted Lightning 7036 | -5/Hub_04(d) | Spotted Lightning 7047 | -5/Hub_04(d) | Spotted Lightning 7056 | -5/Hub_04(d) | Spotted Lightning 7058 | -5/Hub_04(d) | Spotted Lightning 7088 | -5/Hub_04(d) | Destroyed Lightning 7111 | -5/Hub_04(d) | Core integrity fell below 50% 7137 | -5/Hub_04(d) | Core integrity fell below 20% 7145 | -5/Hub_04(d) | Destroyed by B-75 Beast with Heavy Machine Gun Last Messages --------------- 07106_ Microactuators destroyed. 07111_ System corrupted: Substantial component data lost. 07111_ System corrupted: Hvy. Pick targeting data glitched. 07112_ EMDS Slug penetrates Wall. 07113_ Mic. Fission Core destroyed. 07117_ Slammed into G-50 Soldier. 07117_ Penetrated by EMDS Slug. 07118_ Hvy. Pick destroyed. 07119_ Penetrated by EMDS Slug. 07126_ System corrupted: Matter fused (-10). 07126_ Actuator Array destroyed. 07127_ Penetrated by EMDS Slug. 07129_ Knocked back. 07136_ EMDS Slug penetrates Wall. 07138_ Enh. Biometal Leg destroyed. 07141_ System corrupted: IFF burst signal emitted. 07142_ Acquired Nuclear Pulse Thruster. 07144_ Dropped Hvy. Pick. 07144_ EMDS Slug penetrates Terminal. 07145_ Nuclear Pulse Thruster destroyed. Map ----- +----------------------------------------------------+ | ##### ####" "###### # # #???? # | | # #??#" #* # # #???? # | | "" #!#??#" # # #? #?????""" #####+# | | "" #%#??#" ^ # # #?? + ???? ## | | T" #/#??#" #######" #???## "????"" ?# " " | | ""!#/#??#" #?????##% #?????? ??? ?#= " " | | ""!#[####" ^" #??????# #?????#+##??#+#?# " " | | [/%+=%* " #??#####/####???# #???# #?# | | !!!#%####" " #??# #???# #???# #?#] | | !%!#=#??#" #??# [[ #???# #???# #####+## | | |#/#??#" + [[ #???# #???# #? | | #!#??##"""*####### [[ #???# #???# #? | | #%#####""#"####### #???# #???# #? | | # # !%= # #???# #???# #? | | #####!# # #???# #???# #? | | #[#! # ##### ##### #? | | " +=+* # ! " #? | | " #!#% !##########g #? | | " #%######################### #? | | ?/ l #? | | " # ######## hhi ########### #? | | " # #??????# ##????????# #? | | " ?+ #??????# "T #?????????# #? | | ?####+########+#??????# " #?????????# #? | | ##?????? ????????????#### #?????????# #? | | ????????"""???????????+ @/ #?????????# +? | | ?????????""???????????#####;BB####?????????# #? | | ?????????"" ???????????????# B#????????????# #? | | ?????????"" #??????????????####???????????? #? | | ?????????? #??????????????????????????????#### #? | | ????????????#?????????????????????????????????? #? | | ??????????????????????????????????????????????? ? | | ???????????????????????????????????????????????#?? | | ?????????????????????????????????????????????????? | | ?????????????????????????????????????????????????? | | ?????????????????????????????????????????????????? | | ?????????????????????????????????????????????????? | | ?????????????????????????????????????????????????? | | ?????????????????????????????????????????????????? | | ?????????????????????????????????????????????????? | | ?????????????????????????????????????????????????? | | ?????????????????????????????????????????????????? | | ?????????????????????????????????????????????????? | | ?????????????????????????????????????????????????? | | ?????????????????????????????????????????????????? | | ?????????????????????????????????????????????????? | | ?????????????????????????????????????????????????? | | ?????????????????????????????????????????????????? | | ?????????????????????????????????????????????????? | | ?????????????????????????????????????????????????? | +----------------------------------------------------+ Best States ------------- Heat Dissipation 52 Energy Generation 41 Energy Capacity 580 Matter Stores 300 Matter Capacity 300 Sight Range 22 Robot Scan Range 16 Terrain Scan Density 10 Additional Mass Support 9 Armor Coverage 600 Utility Shielding 33 Melee Speed Boost 40 Evasion (%) 55 Targeting Accuracy 13 Melee Accuracy 11 Core Analysis 6 Particle Charging 15 Item Schematics ----------------- Thermal Shield | -7/Factory | Hacked Lyr. Heavy Armor Plating | -7/Factory | Scanalyzed Microactuators | -7/Factory | Scanalyzed Robot Schematics ------------------ A-02 Transporter | -5/Extension | Hacked Fabricated ------------ Lyr. Heavy Armor Plating | x1 | -7/Factory | Preloaded Microactuators | x2 | -7/Factory Alien Tech Used ----------------- None Achievements -------------- None Challenges ------------ None Game ------ Seed ThermalLobotomyDesublimator Manual? 0 Play Time 00:59:16 Cumulative 205.6 hours Start 2021.05.12 @ 10:26:22 End 2021.05.12 @ 11:33:34 Sessions 1 Manual Loads 0 Difficulty Rogue Special Mode None Game No. 400 Rogue 245 Adventurer 148 Explorer 7 Win Type - Total 5 Types 5/0/0/0/0/0/0/0/0 Lore% 73 Gallery% 84 Achievement% 62 Wizard Run 0 Options --------- ASCII 0 Keyboard 0 Movement Numpad Keybinds 0 Fullscreen 1 Font 14/X11 Map View 84x54 Tactical HUD 1 Map Filters NONE Filters NONE Steam 1 RUN: a26c44d2-20e1-47f9-b2f7-722579d22683